bitfinex/quotes_ETHUSD_20240717
["timestamp","ask_amount","ask_price","bid_price","bid_amount"]
[1721185303483,2.4672,3488.3,3486.8,2.86793]
[1721185303701,0.75794492,3488.2,3486.8,2.86793]
[1721185303847,2.4672,3488.3,3486.5,1.7]
[1721185303848,2.86711,3487.9,3486.9,0.0280766]
[1721185304052,2.86711,3487.9,3486.6,2.86805]
[1721185304248,2.86711,3487.9,3487.0,0.0280547]
[1721185304478,2.86711,3487.9,3486.9,2.86786]
[1721185304676,2.86711,3487.9,3487.1,0.02803281]
[1721185304851,2.86711,3487.9,3486.9,2.86786]
[1721185304852,2.86711,3487.9,3487.0,0.0280547]
[1721185305066,3.440511,3487.9,3487.0,0.0280547]
[1721185305477,3.440511,3487.9,3486.8,2.86795]
[1721185305811,2.8673,3487.6,3486.5,4.56817]
[1721185305958,2.86662,3488.5,3485.9,2.86864]
[1721185305959,2.4409,3488.9,3487.1,1.7]
[1721185306158,2.86648,3488.6,3487.5,2.86737]
[1721185306668,2.86648,3488.6,3487.6,0.02777774]
[1721185307005,2.86647,3488.7,3487.6,2.89506774]
[1721185307178,2.86646,3488.7,3487.6,2.89506774]
[1721185307366,2.86648,3488.6,3487.6,2.89506774]
[1721185307559,2.86648,3488.6,3487.7,0.45950677]
[1721185307983,2.86648,3488.6,3487.8,0.02773397]
[1721185308263,2.4219,3489.7,3488.5,2.86652]
[1721185308496,2.86575,3489.5,3488.5,2.86652]
[1721185308660,2.86575,3489.5,3488.6,0.02755894]
[1721185308860,3.681072,3489.5,3488.6,0.02755894]
[1721185309307,0.815322,3489.5,3488.6,0.02755894]
[1721185309463,2.86639,3488.7,3487.3,1.7]
[1721185309668,2.86648,3488.6,3487.6,2.86723]
[1721185309869,2.86648,3488.6,3487.8,0.02773397]
[1721185310093,2.86648,3488.6,3487.6,2.86723]
[1721185310094,2.86648,3488.6,3487.7,0.02775585]
[1721185310406,2.86648,3488.6,3487.8,0.0274467]
[1721185310567,3.0,3489.0,3488.0,1.7]
[1721185310771,2.86591,3489.3,3488.3,2.86672]
[1721185311069,3.0,3489.2,3488.4,0.02731674]
[1721185311470,2.86623,3489.0,3488.4,0.02731674]
[1721185311671,3.0,3488.9,3488.0,1.7]
[1721185311902,3.0,3488.9,3488.0,2.47236877]
[1721185312099,5.86624,3488.9,3488.1,0.02738237]
[1721185312828,2.86643,3488.7,3488.1,0.02738237]
[1721185313125,2.86643,3488.7,3487.8,0.28946767]
[1721185313336,2.4682,3490.1,3488.7,1.7]
[1721185313631,0.89668642,3490.2,3489.1,2.86603]
[1721185313632,0.79494222,3490.0,3489.1,2.86603]
[1721185313790,2.86522,3490.2,3489.1,2.86603]
[1721185313987,2.86522,3490.2,3489.2,0.02714309]
[1721185314312,2.86522,3490.2,3489.2,2.89312309]
[1721185315501,2.86525,3490.1,3489.2,0.02714309]
[1721185315694,3.2283055,3490.0,3489.2,0.02714309]
[1721185315893,2.87046898,3491.3,3489.8,2.86543]
[1721185316123,3.225,3491.2,3489.6,2.86564]
[1721185316322,2.86459,3490.9,3489.9,0.02693894]
[1721185316627,2.86459,3490.9,3489.3,2.86588]
[1721185316628,2.86508,3490.3,3490.0,0.02691708]
[1721185316790,2.86508,3490.3,3489.3,2.86588]
[1721185317122,2.86508,3490.3,3489.4,0.02704824]
[1721185317435,5.86516,3490.2,3489.4,0.02704824]
[1721185319939,3.0,3490.2,3489.5,2.86571]
[1721185320292,3.0,3490.4,3489.6,0.02667941]
[1721185320505,3.0,3490.4,3489.6,0.44847521]
[1721185320951,5.4548,3490.4,3489.6,0.44847521]
[1721185321107,2.86518,3490.2,3489.6,0.02667941]
[1721185321492,5.8653,3490.1,3489.1,2.86601]
[1721185321687,2.86534,3490.0,3489.1,2.86601]
[1721185322033,5.86525,3490.1,3489.2,0.02676687]
[1721185322608,2.86533,3490.0,3489.2,0.02676687]
[1721185323432,2.86533,3490.0,3489.2,0.60266556]
[1721185323633,3.0,3490.1,3489.2,0.60266556]
[1721185323794,3.0,3490.2,3489.2,0.60266556]
[1721185323997,2.8653,3490.1,3489.2,0.60266556]
[1721185324223,5.86533,3490.0,3489.2,0.60266556]
[1721185324428,2.86533,3490.0,3489.2,0.60266556]
[1721185325223,2.86533,3490.0,3489.3,0.34686756]
[1721185325519,2.86533,3490.0,3489.4,0.02661176]
[1721185325722,3.0,3490.2,3489.4,0.02661176]
[1721185325908,5.4548,3490.4,3489.4,0.02661176]
[1721185326294,5.4548,3490.4,3489.4,0.57814656]
[1721185326495,2.86513,3490.3,3489.4,0.57814656]
[1721185326722,3.0,3490.2,3489.4,0.57814656]
[1721185328634,2.86464,3490.9,3489.5,4.216305]
[1721185328797,2.86468,3490.8,3489.8,2.86543]
[1721185329149,2.86468,3490.8,3489.9,0.02649461]
[1721185330327,2.86468,3490.8,3489.9,2.89189461]
[1721185331100,2.86464,3490.9,3489.9,2.89189461]
[1721185331444,2.86464,3490.9,3490.0,0.57574646]
[1721185331741,2.86464,3490.9,3490.1,0.02637886]
[1721185331912,2.86467,3490.8,3490.1,0.02637886]
[1721185335376,2.86451,3491.0,3490.1,0.02637886]
[1721185335557,5.86459,3490.9,3490.1,0.02637886]
[1721185338563,3.0,3490.9,3490.1,0.02637886]
[1721185338783,2.86416,3491.5,3490.4,2.86492]
[1721185338942,5.86423,3491.4,3490.4,2.86492]
[1721185339269,5.86423,3491.4,3490.5,0.02805295]
[1721185340239,3.0,3491.4,3490.5,0.02805295]
[1721185340537,7.48,3491.9,3490.5,0.02805295]
[1721185340538,2.86351,3492.3,3490.9,1.7]
[1721185340738,2.86326,3492.6,3491.5,2.86404]
[1721185340971,2.86314,3492.7,3491.3,2.86426]
[1721185341235,2.86314,3492.7,3491.4,2.86412]
[1721185341236,2.8633,3492.5,3491.4,2.86412]
[1721185341465,2.8633,3492.5,3491.4,2.89651434]
[1721185341671,2.8633,3492.5,3491.5,0.57607743]
[1721185341869,2.8633,3492.5,3491.6,0.03233975]
[1721185342180,2.86348,3492.3,3491.6,0.03233975]
[1721185342596,2.8633,3492.5,3491.6,0.03233975]
[1721185342778,3.0,3493.0,3491.9,1.7]
[1721185342978,2.2563,3493.4,3492.1,2.86353]
[1721185343292,2.86284,3493.1,3492.2,0.03458361]
[1721185343650,2.86296,3492.9,3492.2,0.03458361]
[1721185343853,2.2563,3492.5,3491.3,7.28]
[1721185344050,2.2563,3492.5,3490.4,2.86492]
[1721185344051,3.225,3492.3,3490.4,2.86499]
[1721185344287,3.225,3492.3,3490.3,2.2655]
[1721185344288,2.86408,3491.6,3490.5,3.547959]
[1721185344497,3.0,3491.5,3490.6,2.86477]
[1721185345086,3.0,3491.5,3491.0,2.86446]
[1721185345266,3.0,3491.9,3490.9,2.86458]
[1721185345991,2.86386,3491.8,3490.7,4.56475]
[1721185346303,3.0,3491.7,3490.8,3.6759109]
[1721185347889,3.0,3491.8,3490.8,3.6759109]
[1721185348400,5.86385,3491.8,3490.8,3.6759109]
[1721185349189,3.0,3491.8,3490.8,3.6759109]
[1721185349418,3.0,3491.9,3490.8,3.6759109]
[1721185349738,3.0,3491.9,3490.7,1.7]
[1721185349739,2.86351,3492.3,3491.2,2.2821]
[1721185350106,2.86354,3492.2,3491.2,2.2821]
[1721185350418,5.11959,3492.5,3491.3,2.86426]
[1721185350594,2.86329,3492.5,3491.3,2.9215361]
[1721185350925,2.86329,3492.5,3491.4,0.69036361]
[1721185351087,2.86344,3492.3,3491.5,0.05727609]
[1721185352330,3.0,3492.2,3491.5,0.05727609]
[1721185352495,3.0,3492.2,3491.4,0.69036361]
[1721185352835,3.0,3492.2,3491.4,0.74763973]
[1721185353041,3.0,3492.2,3491.5,0.38805177]
[1721185354036,3.0,3492.3,3491.5,0.38805177]
[1721185354395,3.0,3492.5,3491.6,2.864]
[1721185355033,5.86328,3492.5,3491.5,0.38805177]
[1721185355196,2.86328,3492.5,3491.5,0.38805177]
[1721185355400,3.0,3492.4,3491.6,0.39426254]
[1721185355725,3.0,3492.4,3491.5,3.25214177]
[1721185355937,3.0,3492.4,3491.5,0.38805177]
[1721185356726,5.86336,3492.4,3491.5,3.25213177]
[1721185358708,3.0,3492.4,3491.7,1.7]
[1721185358915,3.0,3492.5,3491.7,1.7]
[1721185359145,5.86328,3492.5,3491.8,0.49520318]
[1721185360519,2.3236,3493.5,3492.0,2.86361]
[1721185360741,2.86278,3493.1,3492.2,2.86351]
[1721185361248,2.86267,3493.3,3492.3,4.62069214]
[1721185361453,2.86267,3493.3,3492.3,4.56343]
[1721185361654,2.86271,3493.2,3492.3,5.306134]
[1721185361841,2.86288,3493.0,3492.3,2.442704]
[1721185362022,2.86288,3493.0,3492.3,0.742704]
[1721185362223,2.86288,3493.0,3491.9,4.0889]
[1721185362639,2.86288,3493.0,3492.0,2.86363]
[1721185362822,2.86334,3492.5,3491.5,2.08805177]
[1721185363024,2.86312,3492.7,3491.5,2.08805177]
[1721185363233,3.0,3492.6,3491.5,2.08805177]
[1721185363526,2.86336,3492.4,3491.6,0.45658518]
[1721185364833,2.86344,3492.3,3491.6,0.45658518]
[1721185366962,2.86338,3492.4,3491.6,0.45658518]
[1721185367960,5.86319,3492.6,3491.6,0.45658518]
[1721185368134,2.86328,3492.5,3491.6,0.45658518]
[1721185368324,2.86336,3492.4,3491.7,0.50206752]
[1721185369565,5.86319,3492.6,3491.7,0.50206752]
[1721185370862,2.86329,3492.5,3491.7,0.50206752]
[1721185373861,5.86319,3492.6,3491.6,0.45658518]
[1721185373862,2.86337,3492.4,3491.6,0.45658518]
[1721185378042,2.86346,3492.3,3491.6,0.45658518]
[1721185379464,2.86354,3492.2,3491.3,2.4778]
[1721185379639,2.86354,3492.2,3491.3,5.342]
[1721185380764,2.8636,3492.1,3491.3,5.34205]
[1721185381064,2.86378,3491.9,3490.9,2.4462]
[1721185381265,2.86386,3491.8,3491.0,1.74492]
[1721185381773,2.86386,3491.8,3491.2,1.7]
[1721185384647,2.86386,3491.8,3491.0,4.60941]
[1721185387719,2.86386,3491.8,3491.2,1.7]
[1721185387894,2.86386,3491.8,3491.3,0.630941]
[1721185390356,2.86393,3491.7,3491.3,0.630941]
[1721185390594,2.86393,3491.7,3491.0,2.86449]
[1721185390800,2.86418,3491.4,3490.7,3.0]
[1721185391093,2.86418,3491.4,3490.4,6.02874756]
[1721185391094,2.86426,3491.3,3490.4,6.02874756]
[1721185391278,2.86426,3491.3,3490.5,4.61100476]
[1721185391817,3.76094642,3491.3,3490.5,4.61100476]
[1721185391977,3.76094642,3491.3,3490.7,1.7]
[1721185392178,2.86426,3491.3,3490.7,1.7]
[1721185393181,2.86426,3491.3,3490.5,4.61100476]
[1721185393487,2.86426,3491.3,3490.6,0.83943371]
[1721185396716,2.86426,3491.3,3490.7,1.7]
[1721185399587,2.8642,3491.4,3490.7,1.7]
[1721185399992,5.72845,3491.4,3490.7,1.7]
[1721185400223,2.8642,3491.4,3490.7,1.7]
[1721185400388,3.76088642,3491.4,3490.8,0.54043337]
[1721185400587,2.8642,3491.4,3490.8,0.54043337]
[1721185401321,2.86431,3491.3,3490.8,0.54043337]
[1721185401523,2.86431,3491.3,3490.6,0.83943371]
[1721185401524,2.3357,3491.2,3490.6,0.83943371]
[1721185403608,5.20005,3491.2,3490.6,0.83943371]
[1721185413196,2.86443,3491.1,3490.6,0.83943371]
[1721185414037,2.86458,3491.0,3490.6,0.83943371]
[1721185414253,2.86458,3491.0,3490.3,1.7]
[1721185414417,2.8646,3490.9,3490.3,1.7]
[1721185415803,2.86475,3490.7,3490.3,1.7]
[1721185418404,2.86473,3490.8,3490.3,1.7]
[1721185418642,2.86473,3490.8,3490.4,0.17]
[1721185418643,3.87073,3490.8,3490.4,0.17]
[1721185418939,6.73548,3490.8,3490.4,0.17]
[1721185419448,3.87073,3490.8,3490.4,0.17]
[1721185419758,3.53112512,3491.2,3490.4,0.17]
[1721185419759,2.3357,3491.2,3490.4,0.17]
[1721185419906,2.86455,3491.0,3490.5,0.473514]
[1721185420107,1.006,3490.7,3490.4,0.17]
[1721185420702,1.006,3490.7,3490.3,1.7]
[1721185420906,1.006,3490.5,3490.0,0.29864142]
[1721185421141,1.006,3490.5,3489.9,4.56539]
[1721185421523,1.006,3490.7,3489.9,4.56539]
[1721185421954,1.006,3490.3,3489.5,1.7]
[1721185422106,1.006,3490.1,3489.4,3.0]
[1721185422452,1.006,3490.1,3489.3,5.5959]
[1721185422612,1.006,3489.9,3489.3,5.5959]
[1721185422812,1.006,3489.9,3489.3,5.64278132]
[1721185423044,1.006,3489.9,3489.3,7.34278132]
[1721185423405,6.22722,3489.9,3489.3,2.77688132]
[1721185423607,1.006,3489.7,3489.3,2.77688132]
[1721185424138,1.006,3489.7,3489.3,0.04688132]
[1721185424335,5.22122,3489.9,3489.3,0.04688132]
[1721185424512,5.22122,3489.9,3489.2,0.49559414]
[1721185424853,5.22122,3489.9,3489.3,0.04688132]
[1721185425053,2.86567,3489.6,3489.3,0.04688132]
[1721185425347,2.86567,3489.6,3489.2,0.49559414]
[1721185425517,2.86567,3489.6,3489.4,0.04710477]
[1721185425849,2.86567,3489.6,3489.3,0.04714576]
[1721185426045,2.86567,3489.6,3489.2,0.49559414]
[1721185426211,2.86567,3489.6,3489.4,0.03768381]
[1721185426407,2.86567,3489.6,3489.2,0.49559414]
[1721185426609,2.86567,3489.6,3489.5,0.03809756]
[1721185426825,2.86567,3489.6,3489.2,0.49559414]
[1721185427045,2.86567,3489.6,3489.5,0.03809756]
[1721185427248,2.8659,3489.3,3489.2,0.49559414]
[1721185427616,5.2417,3489.3,3489.2,0.49559414]
[1721185429255,2.8655,3489.8,3489.2,0.49559414]
[1721185429764,5.33927,3490.0,3489.2,0.49559414]
[1721185430056,2.4739,3490.0,3489.2,0.49559414]
[1721185430362,2.4739,3490.0,3489.2,1.35702155]
[1721185430768,2.4739,3490.0,3489.2,0.86142741]
[1721185431058,5.33923,3490.0,3489.2,0.86142741]
[1721185431277,5.33923,3490.0,3489.1,2.86605]
[1721185433274,5.33923,3490.0,3489.2,2.86597]
[1721185434174,5.33923,3490.0,3488.9,2.8662]
[1721185434672,2.4739,3490.0,3488.9,2.8662]
[1721185434842,2.4739,3490.0,3489.0,0.53143104]
[1721185435359,2.4739,3490.0,3489.1,2.86606]
[1721185435733,5.33922,3490.0,3489.1,2.86606]
[1721185436374,2.4739,3490.0,3489.1,2.86606]
[1721185436770,5.33923,3490.0,3489.1,2.86606]
[1721185436957,5.33923,3490.0,3489.1,3.53735662]
[1721185437576,5.33923,3490.0,3489.1,2.86606]
[1721185439984,2.86551,3489.8,3489.2,0.03829587]
[1721185440288,2.416,3489.8,3488.8,0.44927513]
[1721185440486,2.356,3489.7,3489.3,0.03821996]
[1721185440647,2.86571,3489.6,3488.8,0.44927513]
[1721185440985,2.86574,3489.5,3488.8,0.44927513]
[1721185441151,2.86574,3489.5,3488.9,0.03835116]
[1721185444781,2.86583,3489.4,3488.9,0.03835116]
[1721185444979,2.86583,3489.4,3488.8,0.44927513]
[1721185445292,2.86583,3489.4,3488.9,0.03835116]
[1721185445676,2.86583,3489.4,3488.8,0.44927513]
[1721185445874,2.86583,3489.4,3489.0,0.03831835]
[1721185446061,2.86583,3489.4,3488.8,0.44927513]
[1721185446264,2.86583,3489.4,3489.1,0.03828555]
[1721185446586,1.007,3489.2,3488.8,0.44927513]
[1721185446891,1.007,3488.9,3488.8,0.44927513]
[1721185447588,1.007,3488.9,3488.3,7.28]
[1721185447589,3.87323,3488.9,3488.3,7.28]
[1721185447780,1.007,3488.4,3488.3,7.28]
[1721185448025,1.007,3488.4,3487.7,5.28229]
[1721185448026,1.007,3488.4,3487.7,7.28]
[1721185448189,0.622923,3488.9,3487.5,2.86738]
[1721185448190,1.007,3487.9,3487.5,2.86738]
[1721185448389,1.007,3487.9,3487.3,5.28263]
[1721185448587,1.007,3487.9,3487.4,2.86746]
[1721185448841,1.007,3487.7,3487.5,0.528256]
[1721185449147,1.007,3487.5,3487.1,7.28]
[1721185449293,1.007,3487.5,3487.4,0.44951192]
[1721185449494,1.007,3487.7,3487.4,0.44951192]
[1721185449842,1.007,3487.8,3487.4,0.44951192]
[1721185450324,2.86685,3488.2,3487.4,0.44951192]
[1721185451043,2.356,3488.3,3487.4,1.67922411]
[1721185451525,2.356,3488.3,3487.5,2.86736]
[1721185452388,2.86699,3488.0,3487.4,0.44951192]
[1721185452794,5.22276,3488.3,3487.4,0.44951192]
[1721185452992,2.86684,3488.2,3487.4,0.44951192]
[1721185453730,2.86692,3488.1,3487.4,0.44951192]
[1721185453898,2.86682,3488.2,3487.4,0.44951192]
[1721185454547,2.356,3488.3,3487.4,1.96598611]
[1721185454734,2.418,3488.4,3487.6,2.86727]
[1721185454943,5.28464,3488.4,3487.6,2.86727]
[1721185455113,5.28464,3488.4,3487.7,0.02796905]
[1721185456234,5.28320703,3488.4,3487.7,0.02796905]
[1721185456748,2.41656703,3488.4,3487.7,0.02796905]
[1721185457222,5.28321703,3488.4,3487.7,0.02796905]
[1721185457423,5.28321703,3488.4,3487.5,2.86737]
[1721185457628,5.28321703,3488.4,3487.8,0.02792879]
[1721185457829,2.41656703,3488.4,3487.6,2.86727]
[1721185458147,2.41656703,3488.4,3487.9,0.0280608]
[1721185458451,2.41656703,3488.4,3488.0,0.02803736]
[1721185458615,2.41656703,3488.4,3487.6,2.86727]
[1721185458948,5.28321703,3488.4,3488.1,0.02801392]
[1721185459265,8.06154,3488.3,3488.2,0.02799048]
[1721185459451,2.86702,3488.0,3487.4,0.44951192]
[1721185459660,5.28502,3488.0,3487.4,0.44951192]
[1721185460244,2.3385,3487.7,3487.4,0.44951192]
[1721185460438,5.28498,3488.0,3487.4,0.44951192]
[1721185460837,2.86707,3487.9,3487.4,0.44951192]
[1721185461252,2.86738,3487.5,3487.4,0.44951192]
[1721185461452,2.86738,3487.5,3486.8,10.14]
[1721185461453,2.86752,3487.4,3486.8,10.14]
[1721185461652,2.86757,3487.3,3486.8,7.28]
[1721185464532,2.418,3487.5,3486.8,7.28]
[1721185464869,5.25486,3487.4,3486.8,7.28]
[1721185465045,2.418,3487.1,3486.8,7.28]
[1721185465572,2.418,3487.1,3486.4,3.31786799]
[1721185465573,2.86789,3486.9,3486.4,0.44959799]
[1721185466046,2.86789,3486.9,3486.1,2.86853]
[1721185468172,2.4696,3486.8,3486.0,7.28]
[1721185468457,2.4696,3486.8,3486.0,8.75174]
[1721185468744,2.4696,3486.8,3486.0,11.62035]
[1721185469457,2.4696,3486.8,3486.0,8.75174]
[1721185470073,2.4696,3486.8,3486.1,0.03504803]
[1721185471271,2.86789,3486.9,3486.1,0.03504803]
[1721185471272,2.86789,3486.9,3486.1,2.90357803]
[1721185471576,2.8678,3487.0,3486.2,1.11379847]
[1721185471739,5.8678,3487.0,3486.2,1.11379847]
[1721185472066,5.8678,3487.0,3486.3,0.03224598]
[1721185472269,1.008,3486.6,3486.3,0.03224598]
[1721185472568,1.008,3486.6,3486.3,0.43370342]
[1721185474275,5.8678,3487.0,3486.3,0.43370342]
[1721185474481,5.8678,3487.0,3486.3,0.03224598]
[1721185474680,5.8678,3487.0,3486.1,2.86853]
[1721185474849,5.8678,3487.0,3486.4,0.0322186]
[1721185475176,5.8678,3487.0,3486.1,2.86853]
[1721185475556,5.8678,3487.0,3486.2,0.03227336]
[1721185475870,7.223204,3487.0,3486.2,0.03227336]
[1721185476440,7.223204,3487.0,3486.2,2.90070336]
[1721185476876,2.4946,3486.6,3486.2,0.03227336]
[1721185477084,2.4946,3486.2,3485.5,0.44964991]
[1721185477285,2.42,3485.6,3485.5,0.44964991]
[1721185477441,4.8372,3485.6,3484.6,7.28]
[1721185477648,2.86906,3485.5,3484.6,0.29920116]
[1721185477876,2.86906,3485.5,3484.6,3.16896116]
[1721185478482,2.86906,3485.5,3484.6,2.86976]
[1721185478658,2.86906,3485.5,3484.7,0.743968]
[1721185479851,4.8372,3485.6,3484.7,0.743968]
[1721185480090,4.8372,3485.6,3484.8,2.86955]
[1721185481289,4.8372,3485.6,3484.9,2.86951]
[1721185481963,4.8372,3485.6,3484.7,3.613608]
[1721185482283,4.8372,3485.6,3484.8,2.86958]
[1721185483059,2.86911,3485.4,3484.6,2.86973]
[1721185483370,2.86938,3485.1,3484.2,2.87007]
[1721185483772,2.86938,3485.1,3484.3,2.87]
[1721185484388,3.0,3485.5,3484.3,2.87]
[1721185484578,3.0,3485.5,3484.4,1.185]
[1721185484979,3.0,3485.5,3484.5,2.86984]
[1721185485287,5.86903,3485.5,3484.5,2.86984]
[1721185486288,5.86903,3485.5,3485.0,2.86943]
[1721185486289,3.0,3485.5,3485.0,2.86943]
[1721185486590,8.28867,3486.0,3485.0,3.613338]
[1721185487180,2.42,3486.0,3485.2,1.7]
[1721185487353,2.42,3486.4,3485.2,1.7]
[1721185487764,2.42,3486.4,3485.5,2.86902]
[1721185488081,2.4322,3487.1,3486.2,2.86842]
[1721185488293,2.42,3487.6,3486.3,1.986842]
[1721185488601,2.86737,3487.6,3486.5,2.86815]
[1721185488891,2.4322,3487.7,3486.7,2.86802]
[1721185489085,5.29942,3487.7,3486.7,2.86802]
[1721185489664,2.8673,3487.6,3486.7,2.86802]
[1721185489864,0.52995,3487.5,3486.7,2.86802]
[1721185490376,3.52995,3487.5,3486.7,2.86802]
[1721185491211,2.86747,3487.4,3486.3,4.855192]
[1721185491389,2.86757,3487.3,3486.3,1.986842]
[1721185491567,2.86757,3487.3,3486.1,2.86851]
[1721185491897,2.86757,3487.3,3486.2,2.86842]
[1721185491898,3.0,3487.2,3486.2,2.86842]
[1721185492421,5.86763,3487.2,3486.2,2.86842]
[1721185493374,5.86763,3487.2,3486.1,2.86851]
[1721185493574,2.86798,3486.8,3485.9,2.86869]
[1721185493978,3.0,3486.7,3485.9,2.86869]
[1721185494165,5.255,3486.7,3485.7,7.28]
[1721185494365,2.86813,3486.6,3485.7,7.28]
[1721185494777,2.86813,3486.6,3485.7,10.14885]
[1721185495014,2.86813,3486.6,3485.7,11.450636]
[1721185496260,2.8682,3486.5,3485.7,7.28]
[1721185497678,5.255,3486.7,3485.3,2.86911]
[1721185497679,2.8685,3486.2,3485.3,2.86911]
[1721185497876,5.255,3486.7,3485.3,2.86911]
[1721185498085,2.86842,3486.3,3485.3,2.86911]
[1721185498304,2.86821,3486.5,3485.6,2.86893]
[1721185498509,3.0,3486.4,3485.6,2.86893]
[1721185498916,5.36828,3486.4,3485.6,2.86893]
[1721185499578,5.36828,3486.4,3485.4,2.86905]
[1721185499789,2.86841,3486.3,3485.4,2.86909]
[1721185501081,2.86841,3486.3,3485.3,4.136725]
[1721185501508,2.86841,3486.3,3485.4,2.86909]
[1721185501705,2.86829,3486.4,3485.5,5.2696015]
[1721185501916,2.86837,3486.3,3485.5,5.2696015]
[1721185502123,5.73647,3486.5,3485.5,4.56902]
[1721185502418,2.86821,3486.5,3485.5,4.56902]
[1721185502717,2.8683,3486.4,3485.5,4.56902]
[1721185503220,2.86812,3486.6,3485.5,4.56902]
[1721185503515,3.0,3487.0,3485.5,4.723]
[1721185503720,3.0,3487.1,3486.2,2.86843]
[1721185503882,5.86771,3487.1,3486.2,2.86843]
[1721185504530,2.86771,3487.1,3486.2,2.86843]
[1721185505029,2.86782,3487.0,3486.1,2.86853]
[1721185505234,2.86798,3486.8,3485.9,2.86868]
[1721185505561,2.86798,3486.8,3485.9,3.930778]
[1721185506943,2.86804,3486.7,3485.9,2.86868]
[1721185508426,2.86804,3486.7,3485.7,10.14879]
[1721185508847,2.86813,3486.6,3485.7,7.28]
[1721185510110,2.86823,3486.5,3485.7,7.28]
[1721185511955,2.86823,3486.5,3485.7,10.14886]
[1721185512158,2.86823,3486.5,3485.7,11.497892]
[1721185513259,2.86823,3486.5,3485.7,4.217892]
[1721185513458,2.86823,3486.5,3485.7,2.86886]
[1721185514033,2.86823,3486.5,3485.6,0.4723]
[1721185514356,2.86839,3486.3,3485.3,2.86913]
[1721185515237,2.86864,3486.0,3485.0,2.86936]
[1721185515577,2.86902,3485.5,3484.8,7.28]
[1721185515765,2.86902,3485.5,3484.6,2.86971]
[1721185515925,2.86902,3485.5,3484.6,4.341673]
[1721185516762,2.86923,3485.3,3484.4,2.86992]
[1721185519463,2.86923,3485.3,3484.3,1.7]
[1721185519766,2.86923,3485.3,3484.3,4.56995]
[1721185520471,2.86923,3485.3,3484.4,2.86992]
[1721185521351,2.8692,3485.3,3484.4,2.86992]
[1721185521553,2.8692,3485.3,3484.5,0.743995]
[1721185522562,2.8692,3485.3,3484.5,3.613845]
[1721185523743,2.8692,3485.3,3484.5,0.743995]
[1721185523937,2.8692,3485.3,3484.3,4.56995]
[1721185524842,2.8692,3485.3,3484.4,2.86992]
[1721185525167,2.86942,3485.1,3484.0,2.87023]
[1721185525378,2.86953,3484.9,3484.1,2.87012]
[1721185525568,5.34753,3484.9,3484.1,2.87012]
[1721185527962,6.411213,3484.9,3484.0,2.8702]
[1721185528359,6.411213,3484.9,3484.1,2.87017]
[1721185528750,5.34753,3484.9,3484.1,2.87017]
[1721185529288,2.86941,3485.1,3484.1,2.87017]
[1721185529449,2.86944,3485.0,3484.1,2.87017]
[1721185531846,2.86944,3485.0,3484.2,0.12704622]
[1721185532451,2.86944,3485.0,3484.2,2.99713622]
[1721185533481,3.925352,3485.0,3484.2,2.99713622]
[1721185533802,2.86962,3484.8,3484.2,0.12704622]
[1721185533964,2.8697,3484.7,3484.2,0.12704622]
[1721185534170,2.8697,3484.7,3483.9,2.87034]
[1721185534372,2.8697,3484.7,3484.3,0.12741822]
[1721185534568,3.5492232,3484.7,3483.9,2.87034]
[1721185534787,2.3257,3484.6,3484.4,0.12739321]
[1721185535096,2.3257,3484.6,3483.9,2.87034]
[1721185535461,2.3257,3484.6,3484.5,0.12736821]
[1721185535659,5.19546,3484.6,3483.7,2.87049]
[1721185535878,0.87446032,3484.5,3483.8,2.87042]
[1721185536090,5.19546,3484.6,3483.8,2.99796328]
[1721185540300,5.19546,3484.6,3483.9,2.87034]
[1721185540504,2.86969,3484.7,3483.9,2.87034]
[1721185540665,2.86969,3484.7,3483.9,2.99790139]
[1721185540865,2.86969,3484.7,3483.9,3.58474053]
[1721185541061,2.3916,3485.0,3483.9,3.58474053]
[1721185541266,5.26104,3485.0,3484.1,2.87012]
[1721185541768,5.26104,3485.0,3484.2,0.12748635]
[1721185542683,2.3916,3485.0,3484.2,2.99751635]
[1721185542898,2.3916,3485.0,3484.2,3.8877939]
[1721185543288,2.3916,3485.0,3484.3,2.87]
[1721185543818,2.3916,3485.0,3484.4,0.1274703]
[1721185544020,2.4196,3485.4,3484.5,2.86984]
[1721185544223,5.948468,3485.4,3484.5,2.86984]
[1721185544401,5.948468,3485.4,3484.6,0.12740461]
[1721185544923,8.817578,3485.4,3484.6,0.12740461]
[1721185548037,2.42,3485.0,3484.6,0.12740461]
[1721185548235,2.8696,3484.8,3484.6,0.12740461]
[1721185548405,0.52896,3484.7,3483.9,2.87029]
[1721185548739,2.84766,3484.7,3483.9,2.87029]
[1721185548920,2.3187,3484.7,3484.0,0.12755466]
[1721185549811,3.218723,3485.1,3484.0,0.12755466]
[1721185550019,3.900023,3485.4,3484.5,2.86983]
[1721185550548,0.900023,3485.3,3484.6,0.12738893]
[1721185550717,3.900023,3485.3,3484.5,2.86983]
[1721185551037,0.900023,3485.2,3484.3,2.86994]
[1721185551331,0.900023,3485.0,3484.4,2.86993]
[1721185551541,0.900023,3485.0,3484.4,2.99736894]
[1721185552311,0.900023,3484.9,3484.4,0.12743894]
[1721185552709,0.900023,3484.9,3484.3,2.86996]
[1721185553109,3.769563,3484.9,3484.4,0.12743894]
[1721185553316,0.900023,3484.5,3484.0,2.87023]
[1721185553714,0.900023,3484.5,3484.1,0.1274957]
[1721185554028,0.900023,3484.6,3484.1,0.1274957]
[1721185556554,0.900023,3484.6,3484.1,2.9976757]
[1721185556845,0.900023,3484.6,3484.1,0.1274957]
[1721185557136,0.900023,3484.7,3484.4,2.86992]
[1721185557505,0.900023,3484.7,3484.5,0.12739567]